fUST/lending_fUST_20240203
["ID","MTS","AMOUNT","RATE_DAILY","PERIOD"]
[313214496,1706959841544,-573.88,0.00028767,2]
[313214497,1706959841553,-985.51,0.00028767,2]
[313214498,1706959841562,-500.0,0.00028767,2]
[313214499,1706959841571,-540.04666505,0.00028767,2]
[313214500,1706959841581,-571.76,0.00028767,2]
[313214501,1706959841590,-895.6,0.00028767,2]
[313214502,1706959841599,-664.926863,0.00028767,2]
[313214503,1706959841608,-664.926863,0.00028767,2]
[313214504,1706959841617,-173.63,0.00028767,2]
[313214505,1706959841626,-1666.95,0.00028767,2]
[313214506,1706959841636,-500.0,0.00028767,2]
[313214507,1706959841646,-500.0,0.00028767,2]
[313214508,1706959841656,-500.0,0.00028767,2]
[313214509,1706959841665,-1570.53,0.00028767,2]
[313214510,1706959841675,-380.95995206,0.00028767,2]
[313214511,1706959841684,-2110.14,0.00028767,2]
[313214512,1706959841694,-14861.57,0.00028767,2]
[313214513,1706959841703,-2820.39688462,0.000288,4]
[313214514,1706959841743,-500.0,0.00027219,2]
[313214515,1706959841752,-2388.07837051,0.000288,4]
[313214516,1706959841763,-6759.42242454,0.000288,4]
[313214517,1706959841775,-7184.01828543,0.000288,4]
[313214518,1706959841786,-3389.00239338,0.000288,4]
[313214519,1706959841796,-217.27480687,0.000289,2]
[313214520,1706959841807,-359.72519313,0.000289,2]
[313214521,1706959841816,-155.37620403,0.00028997,2]
[313214522,1706959841826,-1591.5845494,0.00028998,2]
[313214523,1706959841836,-376.35893675,0.00028998,2]
[313214524,1706959841845,-500.0,0.00028998,2]
[313214525,1706959841855,-41.52530881,0.00028999,2]
[313214533,1706959842997,-958.47469119,0.00028999,2]
[313214534,1706959843007,-1000.0,0.00028999,2]
[313214535,1706959843017,-1000.0,0.00028999,2]
[313214536,1706959843027,-1000.0,0.00028999,2]
[313214537,1706959843036,-1000.0,0.00028999,2]
[313214538,1706959843048,-1000.0,0.00028999,2]
[313214539,1706959843059,-1000.0,0.00028999,2]
[313214540,1706959843069,-1000.0,0.00028999,2]
[313214541,1706959843080,-1000.0,0.00028999,2]
[313214542,1706959843090,-600.0,0.00029,2]
[313214543,1706959843100,-499.62988618,0.00029,2]
[313214544,1706959843110,-66.20991815,0.00029,7]
[313214545,1706959843122,-9865.24357467,0.00029,7]
[313214546,1706959843134,-8309.90669291,0.00029,7]
[313214547,1706959843143,-11118.57579154,0.00029,2]
[313214683,1706961032204,-155.02015262,0.00023391,4]
[313214684,1706961032213,-730.1807676,0.00023392,2]
[313214685,1706961032222,-169.979322,0.00023871,2]
[313214686,1706961032231,-203.683616,0.00023893,2]
[313214687,1706961032241,-710.62459582,0.00024142,2]
[313214688,1706961032254,-2423.74918511,0.00024142,2]
[313214718,1706961038751,-6825.60682773,0.00024142,2]
[313214720,1706961038760,-24900.0,0.00024143,2]
[313214722,1706961038769,-801.05379027,0.00025037,2]
[313214723,1706961038778,-7057.52,0.00025137,3]
[313214725,1706961038788,-5881.27,0.00025137,3]
[313214727,1706961038797,-20000.0,0.00025139,2]
[313214729,1706961038806,-230.88142086,0.00025147,2]
[313214730,1706961038815,-155.72853088,0.00025147,2]
[313214731,1706961038824,-591.99312524,0.00025147,2]
[313214732,1706961038833,-24731.47451024,0.00025147,2]
[313214733,1706961038842,-1952.25185184,0.00025147,2]
[313214734,1706961038850,-3889.47108322,0.00025147,2]
[313214735,1706961038859,-2012.78803285,0.00025148,2]
[313214736,1706961038870,-37552.55959154,0.00025149,2]
[313214737,1706961038879,-5421.38047081,0.00025151,2]
[313214738,1706961038891,-3368.18389044,0.00025161,2]
[313214739,1706961038901,-1175.54120588,0.00025161,2]
[313214740,1706961038911,-6977.89316741,0.00025172,2]
[313214741,1706961038921,-155.57854716,0.00026098,2]
[313214742,1706961038931,-183.208202,0.00026147,2]
[313214743,1706961038942,-200.0,0.00026555,15]
[313214744,1706961038952,-915.29506845,0.00026667,2]
[313214745,1706961038962,-620.01102247,0.0002673,2]
[313214746,1706961038972,-1172.08009846,0.00027218,2]
[313214747,1706961038983,-1000.0,0.00027292,3]
[313214748,1706961038992,-1023.88339212,0.00027292,3]
[313214749,1706961039002,-156.8872007,0.00027396,2]
[313214750,1706961039013,-500.0,0.00027396,2]
[313214751,1706961039024,-500.0,0.00027396,2]
[313214752,1706961039034,-500.0,0.00027396,2]
[313214753,1706961039043,-209.23850144,0.00027396,2]
[313214754,1706961039054,-500.0,0.00027396,2]
[313214755,1706961039063,-500.0,0.00027396,2]
[313214756,1706961039073,-500.0,0.00027396,2]
[313214757,1706961039083,-500.0,0.00027396,2]
[313214758,1706961039095,-500.0,0.00027396,2]
[313214759,1706961039106,-500.0,0.00027396,2]
[313214760,1706961039117,-500.0,0.00027396,2]
[313214761,1706961039127,-206.45210218,0.00027396,2]
[313214762,1706961039137,-500.0,0.00027396,2]
[313214763,1706961039149,-500.0,0.00027396,2]
[313214764,1706961039158,-332.96726867,0.00027396,2]
[313214765,1706961039169,-500.0,0.00027396,2]
[313214766,1706961039180,-541.0,0.00027396,2]
[313214767,1706961039192,-500.0,0.00027396,2]
[313214768,1706961039202,-500.0,0.00027396,2]
[313214769,1706961039213,-500.0,0.00027396,2]
[313214770,1706961039222,-500.0,0.00027396,2]
[313214771,1706961039231,-500.0,0.00027396,2]
[313214772,1706961039240,-500.0,0.00027396,2]
[313214773,1706961039250,-500.0,0.00027396,2]
[313214774,1706961039259,-488.58437497,0.00027396,2]
[313214775,1706961039269,-500.0,0.00027396,2]
[313214776,1706961039283,-500.0,0.00027396,2]
[313214777,1706961039297,-500.0,0.00027396,2]
[313214778,1706961039311,-500.0,0.00027396,2]
[313214779,1706961039325,-500.0,0.00027396,2]
[313214780,1706961039338,-500.0,0.00027396,2]
[313214781,1706961039353,-500.0,0.00027396,2]
[313214782,1706961039367,-500.0,0.00027396,2]
[313214783,1706961039380,-500.0,0.00027396,2]
[313214784,1706961039392,-500.0,0.00027396,2]
[313214785,1706961039405,-500.0,0.00027396,2]
[313214786,1706961039418,-400.0,0.00027396,2]
[313214787,1706961039432,-500.0,0.00027396,2]
[313214788,1706961039444,-500.0,0.00027396,2]
[313214789,1706961039456,-311.37143275,0.00027396,2]
[313214790,1706961039468,-500.0,0.00027396,2]
[313214791,1706961039480,-383.14651293,0.00027396,2]
[313214792,1706961039491,-500.0,0.00027396,2]
[313214793,1706961039502,-374.32229926,0.00027396,2]
[313214794,1706961039512,-500.0,0.00027396,2]
[313214795,1706961039522,-500.0,0.00027396,2]
[313214796,1706961039533,-500.0,0.00027396,2]
[313214797,1706961039545,-358.06891963,0.00027396,2]
[313214798,1706961039556,-500.0,0.00027396,2]
[313214799,1706961039566,-500.0,0.00027396,2]
[313214800,1706961039575,-500.0,0.00027396,2]
[313214801,1706961039586,-500.0,0.00027396,2]
[313214804,1706961039596,-500.0,0.00027397,2]
[313214806,1706961039607,-500.0,0.00027397,2]
[313214807,1706961039621,-500.0,0.00027397,2]
[313214808,1706961039631,-372.95353061,0.00027397,2]
[313214809,1706961039642,-432.16430821,0.00027397,2]
[313214810,1706961039651,-500.0,0.00027397,2]
[313214811,1706961039663,-500.0,0.00027397,2]
[313214812,1706961039675,-500.0,0.00027397,2]
[313214813,1706961039686,-500.0,0.00027397,2]
[313214814,1706961039698,-500.0,0.00027397,2]
[313214815,1706961039710,-320.28093465,0.00027397,2]
[313214816,1706961039720,-505.61619828,0.00027397,2]
[313214817,1706961039732,-500.0,0.00027397,2]
[313214818,1706961039744,-505.47567208,0.00027397,2]
[313214819,1706961039754,-176.33972775,0.00027397,2]
[313214820,1706961039764,-503.37405009,0.00027397,2]
[313214821,1706961039775,-500.0,0.00027397,2]
[313214822,1706961039786,-500.0,0.00027397,2]
[313214823,1706961039797,-505.95287227,0.00027397,2]
[313214824,1706961039809,-501.95979755,0.00027397,2]
[313214825,1706961039820,-240.43038265,0.00027397,2]
[313214826,1706961039831,-500.0,0.00027397,2]
[313214827,1706961039843,-530.44382497,0.00027397,2]
[313214828,1706961039854,-500.0,0.00027397,2]
[313214829,1706961039866,-509.16728415,0.00027397,2]
[313214830,1706961039876,-500.0,0.00027397,2]
[313214831,1706961039887,-500.0,0.00027397,2]
[313214832,1706961039898,-500.0,0.00027397,2]
[313214833,1706961039909,-180.9410393,0.00027397,2]
[313214834,1706961039920,-500.0,0.00027397,2]
[313214835,1706961039932,-500.0,0.00027397,2]
[313214836,1706961039943,-500.0,0.00027397,2]
[313214837,1706961039954,-500.0,0.00027397,2]
[313214838,1706961039965,-500.0,0.00027397,2]
[313214839,1706961039976,-500.0,0.00027397,2]
[313214840,1706961039987,-500.0,0.00027397,2]
[313214841,1706961039999,-865.46,0.00027397,2]
[313214842,1706961040008,-500.0,0.00027397,2]
[313214843,1706961040018,-3932.64,0.00027397,2]
[313214844,1706961040028,-500.0,0.00027397,2]
[313214845,1706961040037,-500.0,0.00027397,2]
[313214846,1706961040048,-500.0,0.00027397,2]
[313214847,1706961040058,-500.0,0.00027397,2]
[313214848,1706961040068,-571.76,0.00027397,2]
[313214849,1706961040078,-500.0,0.00027397,2]
[313214850,1706961040088,-573.88,0.00027397,2]
[313214851,1706961040099,-500.0,0.00027397,2]
[313214852,1706961040110,-985.51,0.00027397,2]
[313214853,1706961040122,-508.84074128,0.00027397,2]
[313214854,1706961040132,-500.0,0.00027397,2]
[313214855,1706961040143,-474.96707827,0.00027397,2]
[313214856,1706961040152,-504.62288054,0.00027397,2]
[313214857,1706961040163,-500.0,0.00027397,2]
[313214858,1706961040172,-500.0,0.00027397,2]
[313214859,1706961040182,-500.0,0.00027397,2]
[313214860,1706961040192,-505.88117629,0.00027397,2]
[313214861,1706961040203,-624.15640998,0.00027397,2]
[313214862,1706961040213,-513.93419891,0.00027397,2]
[313214864,1706961040224,-500.0,0.00027397,2]
[313214866,1706961040235,-500.0,0.00027397,2]
[313214867,1706961040245,-895.6,0.00027397,2]
[313214868,1706961040255,-500.0,0.00027397,2]
[313214870,1706961040266,-500.0,0.00027397,2]
[313214872,1706961040276,-500.0,0.00027397,2]
[313214874,1706961040286,-500.0,0.00027397,2]
[313214876,1706961040296,-500.0,0.00027397,2]
[313214878,1706961040305,-500.0,0.00027397,2]
[313214880,1706961040315,-500.0,0.00027397,2]
[313214881,1706961040325,-1666.95,0.00027397,2]
[313214882,1706961040335,-503.81745858,0.00027397,2]
[313214883,1706961040345,-500.0,0.00027397,2]
[313214885,1706961040355,-525.34101276,0.00027397,2]
[313214887,1706961040365,-500.0,0.00027397,2]
[313214889,1706961040375,-500.0,0.00027397,2]
[313214891,1706961040385,-1570.53,0.00027397,2]
[313214893,1706961040396,-500.0,0.00027397,2]
[313214894,1706961040406,-500.0,0.00027397,2]
[313214895,1706961040416,-163.16785423,0.00027397,2]
[313214896,1706961040426,-500.0,0.00027397,2]
[313214897,1706961040436,-2110.14,0.00027397,2]
[313214898,1706961040446,-500.49854135,0.00027397,2]
[313214899,1706961040455,-500.0,0.00027397,2]
[313214900,1706961040465,-500.0,0.00027397,2]
[313214901,1706961040475,-502.51,0.00027397,2]
[313214902,1706961040485,-14861.57,0.00027397,2]
[313214903,1706961040495,-500.0,0.00027397,2]
[313214904,1706961040505,-500.0,0.00027397,2]
[313214905,1706961040514,-3500.33,0.00027397,2]
[313214906,1706961040524,-150.247468,0.00027397,2]
[313214907,1706961040535,-801.05379023,0.00027658,3]
[313214908,1706961040545,-316.44854787,0.00027671,2]
[313214909,1706961040554,-500.0,0.00027671,2]
[313214910,1706961040564,-500.0,0.00027671,2]
[313214911,1706961040574,-500.0,0.00027671,2]
[313214912,1706961040704,-500.0,0.00027671,2]
[313214913,1706961040715,-500.0,0.00027671,2]
[313214914,1706961040726,-500.0,0.00027671,2]
[313214915,1706961040735,-500.0,0.00027671,2]
[313214916,1706961040744,-500.0,0.00027671,2]
[313214917,1706961040754,-500.0,0.00027671,2]
[313214918,1706961040763,-500.0,0.00027671,2]
[313214919,1706961040773,-500.0,0.00027671,2]
[313214920,1706961040782,-500.0,0.00027671,2]
[313214921,1706961040790,-503.93231267,0.00027671,2]
[313214922,1706961040800,-500.0,0.00027671,2]
[313214923,1706961040809,-500.0,0.00027671,2]
[313214924,1706961040818,-865.46,0.00027671,2]
[313214925,1706961040827,-500.0,0.00027671,2]
[313214926,1706961040836,-3932.64,0.00027671,2]
[313214927,1706961040845,-500.0,0.00027671,2]
[313214928,1706961040854,-500.0,0.00027671,2]
[313214929,1706961040863,-571.76,0.00027671,2]
[313214930,1706961040872,-500.0,0.00027671,2]
[313214931,1706961040881,-573.88,0.00027671,2]
[313214932,1706961040891,-500.0,0.00027671,2]
[313214933,1706961040900,-985.51,0.00027671,2]
[313214934,1706961040912,-500.0,0.00027671,2]
[313214935,1706961040921,-500.0,0.00027671,2]
[313214936,1706961040931,-500.0,0.00027671,2]
[313214937,1706961040940,-500.0,0.00027671,2]
[313214938,1706961040949,-895.6,0.00027671,2]
[313214939,1706961040958,-500.0,0.00027671,2]
[313214940,1706961040968,-500.0,0.00027671,2]
[313214941,1706961040977,-500.0,0.00027671,2]
[313214942,1706961040986,-500.0,0.00027671,2]
[313214943,1706961040995,-500.0,0.00027671,2]
[313214944,1706961041004,-500.0,0.00027671,2]
[313214946,1706961041014,-1666.95,0.00027671,2]
[313214947,1706961041024,-500.0,0.00027671,2]
[313214949,1706961041033,-500.0,0.00027671,2]
[313214951,1706961041042,-637.88884278,0.00027671,2]
[313214952,1706961041051,-1570.53,0.00027671,2]
[313214953,1706961041060,-500.0,0.00027671,2]
[313214955,1706961041070,-500.0,0.00027671,2]
[313214957,1706961041079,-500.0,0.00027671,2]
[313214959,1706961041089,-2110.14,0.00027671,2]
[313214961,1706961041098,-500.0,0.00027671,2]
[313214963,1706961041107,-502.51,0.00027671,2]
[313214965,1706961041117,-14861.57,0.00027671,2]
[313214967,1706961041126,-500.0,0.00027671,2]
[313214969,1706961041135,-500.0,0.00027671,2]
[313214971,1706961041145,-3500.33,0.00027671,2]
[313214973,1706961041154,-3000.0,0.000277,4]
[313214975,1706961041163,-150.763,0.00027737,2]
[313214977,1706961041172,-319.02827312,0.000279,2]
[313214979,1706961041182,-500.0,0.00027945,2]
[313214981,1706961041192,-500.0,0.00027945,2]
[313214983,1706961041201,-500.0,0.00027945,2]
[313214985,1706961041211,-463.55643008,0.00027945,2]
[313214987,1706961041220,-500.0,0.00027945,2]
[313214989,1706961041229,-500.0,0.00027945,2]
[313214991,1706961041238,-500.0,0.00027945,2]
[313214993,1706961041247,-500.0,0.00027945,2]
[313214995,1706961041256,-500.0,0.00027945,2]
[313214997,1706961041266,-500.0,0.00027945,2]
[313214999,1706961041274,-500.0,0.00027945,2]
[313215001,1706961041284,-865.46,0.00027945,2]
[313215003,1706961041293,-500.0,0.00027945,2]
[313215005,1706961041302,-3932.64,0.00027945,2]
[313215007,1706961041311,-500.0,0.00027945,2]
[313215009,1706961041320,-500.0,0.00027945,2]
[313215011,1706961041329,-571.76,0.00027945,2]
[313215013,1706961041338,-500.0,0.00027945,2]
[313215015,1706961041347,-573.88,0.00027945,2]
[313215016,1706961041356,-500.0,0.00027945,2]
[313215018,1706961041366,-985.51,0.00027945,2]
[313215020,1706961041376,-500.0,0.00027945,2]
[313215022,1706961041387,-500.0,0.00027945,2]
[313215024,1706961041398,-500.0,0.00027945,2]
[313215027,1706961041409,-895.6,0.00027945,2]
[313215029,1706961041420,-500.0,0.00027945,2]
[313215031,1706961041429,-500.0,0.00027945,2]
[313215032,1706961041440,-510.96694724,0.00027945,2]
[313215034,1706961041450,-500.0,0.00027945,2]
[313215036,1706961041460,-500.0,0.00027945,2]
[313215038,1706961041471,-500.0,0.00027945,2]
[313215040,1706961041482,-1666.95,0.00027945,2]
[313215043,1706961041493,-500.0,0.00027945,2]
[313215045,1706961041504,-500.0,0.00027945,2]
[313215046,1706961041514,-1570.53,0.00027945,2]
[313215049,1706961041525,-500.0,0.00027945,2]
[313215051,1706961041537,-500.0,0.00027945,2]
[313215052,1706961041548,-2110.14,0.00027945,2]
[313215054,1706961041558,-502.51,0.00027945,2]
[313215056,1706961041569,-14861.57,0.00027945,2]
[313215058,1706961041580,-500.0,0.00027945,2]
[313215060,1706961041591,-3500.33,0.00027945,2]
[313215063,1706961041602,-64929.49941037,0.00028,2]
[313215065,1706961041615,-51099.57217898,0.00028,2]
[313215067,1706961041626,-459.92906339,0.00028,3]
[313215069,1706961041636,-620.00055112,0.00028066,2]
[313215070,1706961041646,-26672.88718647,0.00028115,2]
[313215071,1706961041656,-259.0506465,0.00028219,3]
[313215072,1706961041665,-500.0,0.00028219,2]
[313215073,1706961041674,-500.0,0.00028219,2]
[313215074,1706961041684,-500.0,0.00028219,2]
[313215075,1706961041694,-500.0,0.00028219,2]
[313215076,1706961041704,-500.0,0.00028219,2]
[313215077,1706961041714,-500.0,0.00028219,2]
[313215078,1706961041724,-151.0,0.00028219,2]
[313215079,1706961041734,-500.0,0.00028219,2]
[313215080,1706961041745,-500.0,0.00028219,2]
[313215082,1706961041754,-500.0,0.00028219,2]
[313215084,1706961041766,-865.46,0.00028219,2]
[313215086,1706961041776,-500.0,0.00028219,2]
[313215088,1706961041788,-3932.64,0.00028219,2]
[313215090,1706961041799,-500.0,0.00028219,2]
[313215092,1706961041809,-571.76,0.00028219,2]
[313215094,1706961041819,-573.88,0.00028219,2]
[313215096,1706961041829,-985.51,0.00028219,2]
[313215098,1706961041839,-452.68648476,0.00028219,2]
[313215100,1706961041849,-500.0,0.00028219,2]
[313215102,1706961041860,-664.926863,0.00028219,2]
[313215104,1706961041870,-500.0,0.00028219,2]
[313215106,1706961041881,-664.926863,0.00028219,2]
[313215108,1706961041892,-895.6,0.00028219,2]
[313215110,1706961041902,-500.0,0.00028219,2]
[313215112,1706961041911,-500.0,0.00028219,2]
[313215114,1706961041921,-500.0,0.00028219,2]
[313215117,1706961041932,-500.0,0.00028219,2]
[313215118,1706961041943,-500.0,0.00028219,2]
[313215120,1706961041953,-1666.95,0.00028219,2]
[313215122,1706961041964,-500.0,0.00028219,2]
[313215125,1706961041975,-1570.53,0.00028219,2]
[313215127,1706961041985,-500.0,0.00028219,2]
[313215129,1706961041995,-2110.14,0.00028219,2]
[313215130,1706961042005,-502.51,0.00028219,2]
[313215132,1706961042014,-14861.57,0.00028219,2]
[313215133,1706961042024,-500.0,0.00028219,2]
[313215134,1706961042033,-3500.33,0.00028219,2]
[313215135,1706961042043,-5000.0,0.0002838,5]
[313215136,1706961042053,-500.0,0.00028492,2]
[313215137,1706961042063,-606.66960683,0.00028492,2]
[313215138,1706961042073,-500.0,0.00028492,2]
[313215139,1706961042082,-500.0,0.00028492,2]
[313215140,1706961042095,-500.0,0.00028492,2]
[313215141,1706961042105,-161.80184815,0.00028492,2]
[313215142,1706961042114,-524.98359654,0.00028492,2]
[313215143,1706961042124,-212.68165572,0.00028492,2]
[313215144,1706961042133,-500.0,0.00028492,2]
[313215145,1706961042144,-500.0,0.00028492,2]
[313215146,1706961042153,-500.0,0.00028492,2]
[313215147,1706961042163,-500.0,0.00028492,2]
[313215148,1706961042172,-500.0,0.00028492,2]
[313215149,1706961042181,-500.0,0.00028492,2]
[313215150,1706961042191,-500.0,0.00028492,2]
[313215151,1706961042200,-609.0423047,0.00028492,2]
[313215152,1706961042210,-558.71347367,0.00028492,2]
[313215153,1706961042219,-500.0,0.00028493,2]
[313215154,1706961042229,-151.0,0.00028493,2]
[313215155,1706961042238,-500.0,0.00028493,2]
[313215156,1706961042248,-151.0,0.00028493,2]
[313215157,1706961042257,-500.0,0.00028493,2]
[313215158,1706961042266,-574.18868617,0.00028493,2]
[313215159,1706961042275,-500.0,0.00028493,2]
[313215160,1706961042285,-500.0,0.00028493,2]
[313215161,1706961042294,-865.46,0.00028493,2]
[313215162,1706961042305,-500.0,0.00028493,2]
[313215163,1706961042315,-3932.64,0.00028493,2]
[313215164,1706961042325,-571.76,0.00028493,2]
[313215165,1706961042335,-573.88,0.00028493,2]
[313215166,1706961042345,-985.51,0.00028493,2]
[313215167,1706961042355,-325.05,0.00028493,2]
[313215168,1706961042366,-500.0,0.00028493,2]
[313215169,1706961042376,-895.6,0.00028493,2]
[313215170,1706961042386,-500.0,0.00028493,2]
[313215171,1706961042398,-500.0,0.00028493,2]
[313215172,1706961042408,-500.0,0.00028493,2]
[313215173,1706961042419,-500.0,0.00028493,2]
[313215174,1706961042430,-1666.95,0.00028493,2]
[313215175,1706961042440,-500.0,0.00028493,2]
[313215176,1706961042449,-1570.53,0.00028493,2]
[313215177,1706961042458,-500.0,0.00028493,2]
[313215178,1706961042468,-2110.14,0.00028493,2]
[313215179,1706961042477,-415.52731733,0.00028493,2]
[313215180,1706961042543,-86.98268267,0.00028493,2]
[313215181,1706961042552,-742.33502814,0.00028493,2]
[313215182,1706961042569,-848.00898149,0.00025147,2]
[313215183,1706961042578,-1480.14201851,0.00028493,2]
[313215184,1706961042590,-12639.09295335,0.00028493,2]
[313215185,1706961042599,-3500.33,0.00028493,2]
[313215186,1706961042609,-500.0,0.00028767,2]
[313215187,1706961042619,-550.66788078,0.00028767,2]
[313215188,1706961042630,-151.0,0.00028767,2]
[313215189,1706961042639,-151.0,0.00028767,2]
[313215190,1706961042649,-151.0,0.00028767,2]
[313215191,1706961042659,-500.0,0.00028767,2]
[313215192,1706961042668,-865.46,0.00028767,2]
[313215193,1706961042677,-3932.64,0.00028767,2]
[313215194,1706961042686,-571.76,0.00028767,2]
[313215195,1706961042695,-573.88,0.00028767,2]
[313215196,1706961042704,-985.51,0.00028767,2]
[313215197,1706961042713,-664.926863,0.00028767,2]
[313215198,1706961042721,-540.04666505,0.00028767,2]
[313215199,1706961042730,-664.926863,0.00028767,2]
[313215200,1706961042739,-895.6,0.00028767,2]
[313215201,1706961042748,-500.0,0.00028767,2]
[313215202,1706961042757,-173.63,0.00028767,2]
[313215203,1706961042766,-500.0,0.00028767,2]
[313215204,1706961042775,-1666.95,0.00028767,2]
[313215205,1706961042784,-500.0,0.00028767,2]
[313215206,1706961042793,-1570.53,0.00028767,2]
[313215208,1706961042803,-2110.14,0.00028767,2]
[313215209,1706961042814,-502.51,0.00028767,2]
[313215210,1706961042822,-12706.75491961,0.00028767,2]
[313215246,1706961043186,-360.12577253,0.00025146,2]
[313215253,1706961043240,-174.56961326,0.00025146,2]
[313215255,1706961043249,-2293.59373872,0.00025147,2]
[313215257,1706961043258,-180.7763201,0.00027396,2]
[313215259,1706961043268,-500.0,0.00027397,2]
[313215261,1706961043278,-2154.81508039,0.00028767,2]
[313215264,1706961043287,-3500.33,0.00028767,2]
[313215266,1706961043296,-9003.89179439,0.000288,4]
[313215268,1706961043308,-7551.80044201,0.000288,4]
[313215371,1706962232339,-155.02015262,0.00023409,2]
[313215372,1706962232349,-1017.12321481,0.0002341,2]
[313215373,1706962232359,-155.02015262,0.0002341,4]
[313215374,1706962232368,-276.10844169,0.00023411,2]
[313215375,1706962232377,-276.10844169,0.00023411,2]
[313215376,1706962232388,-562.98112702,0.00023411,2]
[313215377,1706962232398,-24900.0,0.00023421,2]
[313215378,1706962232408,-721.44753021,0.00024249,2]
[313215379,1706962232418,-463.66731601,0.00024349,2]
[313215380,1706962232428,-4647.00162816,0.00024383,2]
[313215381,1706962232438,-979.58945662,0.00024388,2]
[313215382,1706962232448,-155.57854716,0.00024388,2]
[313215383,1706962232459,-169.636899,0.00024821,2]
[313215384,1706962232468,-3132.64212006,0.00025209,2]
[313215385,1706962232477,-12153.98441565,0.0002522,2]
[313215386,1706962232486,-200.0,0.00025762,7]
[313215387,1706962232496,-1427.75066763,0.00026393,2]
[313215388,1706962232505,-721.44753019,0.0002681,3]
[313215389,1706962232514,-169.93278219,0.00026998,2]
[313215390,1706962232523,-9182.17,0.00027088,3]
[313215391,1706962232532,-3902.25933644,0.00027098,2]
[313215408,1706962238689,-8394.74777077,0.00027098,2]
[313215409,1706962238698,-329.63381135,0.00027098,2]
[313215410,1706962238707,-379.00530314,0.00027098,7]
[313215411,1706962238718,-426.45204754,0.00027098,2]
[313215412,1706962238727,-200.0,0.00027098,2]
[313215413,1706962238736,-155.35403325,0.00027098,2]
[313215414,1706962238745,-243.48263359,0.00027098,2]
[313215415,1706962238754,-455.2446632,0.00027098,2]
[313215416,1706962238762,-156.8872007,0.00027098,2]
[313215417,1706962238771,-1172.08009846,0.00027098,2]
[313215418,1706962238780,-10582.50114563,0.00027098,2]
[313215419,1706962238790,-500.0,0.00027098,2]
[313215420,1706962238799,-5159.78835943,0.00027099,2]
[313215421,1706962238808,-48933.02600869,0.000271,2]
[313215422,1706962238830,-5682.88923213,0.0002736,4]
[313215424,1706962238840,-500.0,0.00027396,2]
[313215426,1706962238849,-500.0,0.00027396,2]
[313215427,1706962238858,-400.0,0.00027396,2]
[313215428,1706962238868,-500.0,0.00027396,2]
[313215429,1706962238877,-500.0,0.00027396,2]
[313215430,1706962238887,-311.37143275,0.00027396,2]
[313215431,1706962238896,-500.0,0.00027396,2]
[313215432,1706962238906,-500.0,0.00027396,2]
[313215433,1706962238916,-500.0,0.00027396,2]
[313215434,1706962238926,-374.32229926,0.00027396,2]
[313215435,1706962238936,-258.06891963,0.00027396,2]
[313215436,1706962238946,-500.0,0.00027396,2]
[313215437,1706962238955,-500.0,0.00027396,2]
[313215438,1706962238969,-500.0,0.00027396,2]
[313215439,1706962238981,-500.0,0.00027396,2]
[313215440,1706962238990,-500.0,0.00027396,2]
[313215441,1706962239000,-500.0,0.00027396,2]
[313215442,1706962239010,-500.0,0.00027396,2]
[313215443,1706962239019,-500.0,0.00027396,2]
[313215444,1706962239029,-500.0,0.00027396,2]